fUSD/lending_fUSD_20260622
["ID","MTS","AMOUNT","RATE_DAILY","PERIOD"]
[426043259,1782131453000,-494.58565803,0.00024658,2]
[426043263,1782131453000,-205.6771501,0.00024716,2]
[426043261,1782131453000,-803.53,0.00024673,7]
[426043264,1782131453000,-205.6771501,0.00024716,2]
[426043268,1782131453000,-785.0,0.00024927,2]
[426043256,1782131453000,-500.0,0.00024658,2]
[426043271,1782131453000,-1819.18711919,0.00025,2]
[426043270,1782131453000,-211.47667006,0.00025,2]
[426043269,1782131453000,-195.36031954,0.00025,2]
[426043273,1782131453000,-622.51188444,0.00025,2]
[426043272,1782131453000,-540.0,0.00025,2]
[426043267,1782131453000,-1386.96,0.00024919,7]
[426043265,1782131453000,-200.0,0.00024725,2]
[426043275,1782131453000,-7263.86191529,0.00025,2]
[426043274,1782131453000,-3101.77430923,0.00025,2]
[426043276,1782131453000,-50000.0,0.00025,10]
[426043277,1782131453000,-60294.26158838,0.00025,7]
[426043278,1782131453000,-2242.72727385,0.00025,2]
[426043222,1782131453000,-785.0,0.00024262,2]
[426043266,1782131453000,-152.0,0.0002475,3]
[426043255,1782131453000,-500.0,0.00024658,2]
[426043279,1782131453000,-3379.23091969,0.00025,2]
[426043248,1782131453000,-500.0,0.00024658,2]
[426043251,1782131453000,-500.0,0.00024658,2]
[426043221,1782131453000,-784.0,0.0002421,2]
[426043225,1782131453000,-200.0,0.00024309,2]
[426043227,1782131453000,-150.0,0.00024333,2]
[426043228,1782131453000,-5290.95,0.00024363,2]
[426043232,1782131453000,-151.0,0.00024544,2]
[426043230,1782131453000,-420.75706219,0.00024544,2]
[426043229,1782131453000,-649.05,0.00024379,2]
[426043231,1782131453000,-233.5188934,0.00024544,2]
[426043233,1782131453000,-260.4103811,0.00024544,2]
[426043234,1782131453000,-847.53135692,0.00024544,2]
[426043237,1782131453000,-151.0,0.00024645,2]
[426043239,1782131453000,-2682.57183977,0.00024645,2]
[426043223,1782131453000,-405.1602211,0.00024284,2]
[426043238,1782131453000,-200.0,0.00024645,2]
[426043236,1782131453000,-785.0,0.00024595,2]
[426043249,1782131453000,-500.0,0.00024658,2]
[426043241,1782131453000,-871.9,0.00024658,2]
[426043250,1782131453000,-500.0,0.00024658,2]
[426043246,1782131453000,-220.769833,0.00024658,2]
[426043247,1782131453000,-500.0,0.00024658,2]
[426043242,1782131453000,-1000.0,0.00024658,2]
[426043244,1782131453000,-151.0,0.00024658,2]
[426043245,1782131453000,-151.0,0.00024658,2]
[426043240,1782131453000,-171.64,0.00024658,8]
[426043235,1782131453000,-1088.11773686,0.00024558,2]
[426043243,1782131453000,-158.843375,0.00024658,2]
[426043318,1782131454000,-206.0,0.00025416,2]
[426043316,1782131454000,-795.46,0.000254,7]
[426043314,1782131454000,-649.05,0.00025339,2]
[426043313,1782131454000,-785.0,0.00025259,2]
[426043307,1782131454000,-847.53135692,0.00025092,2]
[426043321,1782131454000,-151.0,0.00025417,2]
[426043320,1782131454000,-151.0,0.00025417,2]
[426043311,1782131454000,-2781.82699784,0.00025193,2]
[426043309,1782131454000,-151.0,0.00025193,2]
[426043312,1782131454000,-225.57529442,0.00025259,2]
[426043315,1782131454000,-1784.25,0.00025342,2]
[426043322,1782131454000,-196.31,0.00025417,2]
[426043317,1782131454000,-396.26,0.00025405,2]
[426043333,1782131454000,-203.67761252,0.0002545,2]
[426043323,1782131454000,-151.0,0.00025417,2]
[426043324,1782131454000,-182.11056311,0.00025448,2]
[426043325,1782131454000,-185.40875435,0.0002545,2]
[426043327,1782131454000,-158.45858651,0.0002545,2]
[426043331,1782131454000,-193.43274684,0.0002545,2]
[426043328,1782131454000,-198.68099445,0.0002545,2]
[426043330,1782131454000,-181.37183703,0.0002545,2]
[426043329,1782131454000,-184.31693168,0.0002545,2]
[426043332,1782131454000,-197.69096546,0.0002545,2]
[426043306,1782131454000,-270.0455652,0.00025092,2]
[426043319,1782131454000,-151.0,0.00025417,2]
[426043308,1782131454000,-300.0,0.000251,2]
[426043295,1782131454000,-220.726948,0.00025,2]
[426043304,1782131454000,-242.15909246,0.00025092,2]
[426043335,1782131454000,-218.55083892,0.0002545,2]
[426043287,1782131454000,-187.58537308,0.00025,2]
[426043280,1782131454000,-170.53466025,0.00025,2]
[426043281,1782131454000,-630.61457372,0.00025,5]
[426043283,1782131454000,-1006.45941507,0.00025,2]
[426043284,1782131454000,-681.73097188,0.00025,2]
[426043285,1782131454000,-442.51646338,0.00025,2]
[426043282,1782131454000,-4884.54048851,0.00025,2]
[426043286,1782131454000,-192.91209571,0.00025,2]
[426043289,1782131454000,-843.18926434,0.00025,2]
[426043288,1782131454000,-151.0,0.00025,2]
[426043291,1782131454000,-1118.86447896,0.00025,2]
[426043293,1782131454000,-183.78520518,0.00025,2]
[426043292,1782131454000,-160.0,0.00025,10]
[426043290,1782131454000,-151.0,0.00025,2]
[426043297,1782131454000,-220.726948,0.00025,2]
[426043296,1782131454000,-220.726948,0.00025,2]
[426043298,1782131454000,-494.70946919,0.00025,2]
[426043294,1782131454000,-220.726948,0.00025,2]
[426043301,1782131454000,-288.37,0.00025,2]
[426043310,1782131454000,-200.0,0.00025193,2]
[426043303,1782131454000,-420.75706219,0.00025092,2]
[426043299,1782131454000,-288.37,0.00025,2]
[426043300,1782131454000,-288.37,0.00025,2]
[426043302,1782131454000,-207.23602648,0.00025,2]
[426043305,1782131454000,-151.0,0.00025092,2]
[426043339,1782131454000,-166.20179216,0.0002545,2]
[426043336,1782131454000,-692.27287416,0.0002545,2]
[426043334,1782131454000,-171.20767822,0.0002545,2]
[426043375,1782131454000,-4612.44726536,0.00026,2]
[426043372,1782131454000,-612.79847226,0.0002599,2]
[426043373,1782131454000,-7000.0,0.00026,4]
[426043371,1782131454000,-785.0,0.00025924,2]
[426043369,1782131454000,-200.0,0.00025885,2]
[426043370,1782131454000,-152.0,0.00025886,4]
[426043374,1782131454000,-1135.37316374,0.00026,2]
[426043376,1782131454000,-10000.0,0.00026,2]
[426043368,1782131454000,-2884.75459676,0.00025741,2]
[426043377,1782131454000,-220.71389488,0.00026,2]
[426043389,1782131454000,-482.43,0.00026227,2]
[426043367,1782131454000,-200.0,0.00025741,2]
[426043378,1782131454000,-9102.70088053,0.00026,5]
[426043385,1782131454000,-151.0,0.00026188,2]
[426043383,1782131454000,-420.75706219,0.00026188,2]
[426043386,1782131454000,-290.3986294,0.00026188,2]
[426043381,1782131454000,-550.0,0.00026,2]
[426043380,1782131454000,-240.88258312,0.00026,2]
[426043387,1782131454000,-847.53135692,0.00026188,2]
[426043382,1782131454000,-350.0,0.00026177,2]
[426043384,1782131454000,-260.4103811,0.00026188,2]
[426043388,1782131454000,-396.29,0.00026227,2]
[426043390,1782131454000,-151.0,0.00026232,2]
[426043338,1782131454000,-152.64564695,0.0002545,2]
[426043379,1782131454000,-602.2064578,0.00026,2]
[426043360,1782131454000,-251.11897888,0.0002564,2]
[426043391,1782131454000,-151.0,0.00026239,2]
[426043361,1782131454000,-151.0,0.0002564,2]
[426043358,1782131454000,-721.12765534,0.00025638,2]
[426043340,1782131454000,-175.55783824,0.0002545,2]
[426043337,1782131454000,-166.64057669,0.0002545,2]
[426043342,1782131454000,-159.54773013,0.0002545,2]
[426043343,1782131454000,-164.8907304,0.0002545,2]
[426043346,1782131454000,-158.12530465,0.0002545,2]
[426043345,1782131454000,-173.69367037,0.0002545,2]
[426043347,1782131454000,-194.99923137,0.0002545,2]
[426043348,1782131454000,-204.16758155,0.0002545,2]
[426043349,1782131454000,-160.91673313,0.0002545,2]
[426043344,1782131454000,-172.8233428,0.0002545,2]
[426043350,1782131454000,-184.26468098,0.0002545,2]
[426043341,1782131454000,-160.5356423,0.0002545,2]
[426043354,1782131454000,-350.0,0.00025534,2]
[426043359,1782131454000,-420.75706219,0.0002564,2]
[426043356,1782131454000,-250.59267966,0.00025629,2]
[426043357,1782131454000,-621.78829552,0.00025638,2]
[426043351,1782131454000,-282.49755172,0.0002545,2]
[426043364,1782131454000,-191.35,0.00025644,2]
[426043366,1782131454000,-183.45121984,0.00025741,2]
[426043362,1782131454000,-280.03725111,0.0002564,2]
[426043363,1782131454000,-847.53135692,0.0002564,2]
[426043355,1782131454000,-785.0,0.00025592,2]
[426043353,1782131454000,-5000.0,0.000255,2]
[426043352,1782131454000,-200.0,0.00025486,2]
[426043365,1782131454000,-552.0,0.00025699,2]
[426043436,1782131455000,-785.0,0.00026589,2]
[426043437,1782131455000,-350.0,0.00026591,3]
[426043435,1782131455000,-694.0,0.00026563,2]
[426043426,1782131455000,-50000.0,0.000265,7]
[426043422,1782131455000,-50000.0,0.000265,5]
[426043424,1782131455000,-50000.0,0.000265,5]
[426043423,1782131455000,-50000.0,0.000265,7]
[426043418,1782131455000,-2561.3467,0.00026465,2]
[426043416,1782131455000,-350.0,0.00026451,3]
[426043420,1782131455000,-50000.0,0.000265,5]
[426043427,1782131455000,-50000.0,0.000265,7]
[426043432,1782131455000,-468.128208,0.00026534,2]
[426043429,1782131455000,-50000.0,0.000265,5]
[426043434,1782131455000,-973.0,0.00026563,2]
[426043433,1782131455000,-285.0,0.00026548,7]
[426043431,1782131455000,-396.585598,0.00026512,2]
[426043428,1782131455000,-10000.0,0.000265,2]
[426043438,1782131455000,-350.0,0.00026595,3]
[426043440,1782131455000,-176.90076653,0.0002665,2]
[426043447,1782131455000,-200.0,0.00026689,2]
[426043446,1782131455000,-200.0,0.00026689,2]
[426043441,1782131455000,-2000.0,0.00026667,7]
[426043425,1782131455000,-8490.91,0.000265,7]
[426043430,1782131455000,-445.882329,0.00026504,2]
[426043421,1782131455000,-50000.0,0.000265,7]
[426043410,1782131455000,-350.0,0.00026395,2]
[426043415,1782131455000,-171.22,0.00026422,2]
[426043444,1782131455000,-200.0,0.00026689,2]
[426043400,1782131455000,-151.0,0.00026239,2]
[426043397,1782131455000,-151.0,0.00026239,2]
[426043394,1782131455000,-151.0,0.00026239,2]
[426043395,1782131455000,-151.0,0.00026239,2]
[426043392,1782131455000,-151.0,0.00026239,2]
[426043393,1782131455000,-151.0,0.00026239,2]
[426043401,1782131455000,-151.0,0.00026239,2]
[426043398,1782131455000,-151.0,0.00026239,2]
[426043396,1782131455000,-151.0,0.00026239,2]
[426043399,1782131455000,-151.87,0.00026239,2]
[426043409,1782131455000,-649.05,0.00026299,2]
[426043403,1782131455000,-200.0,0.00026246,2]
[426043411,1782131455000,-265.36638648,0.00026397,2]
[426043413,1782131455000,-430.73528033,0.000264,2]
[426043412,1782131455000,-28040.80563702,0.000264,2]
[426043404,1782131455000,-785.0,0.00026256,2]
[426043402,1782131455000,-350.0,0.00026245,4]
[426043406,1782131455000,-292.09502455,0.00026289,2]
[426043405,1782131455000,-482.43,0.0002627,2]
[426043407,1782131455000,-2991.49051684,0.00026289,2]
[426043408,1782131455000,-544.3,0.00026296,2]
[426043414,1782131455000,-2170.45698891,0.000264,2]
[426043417,1782131455000,-1463.6267,0.00026465,2]
[426043443,1782131455000,-200.0,0.00026689,2]
[426043419,1782131455000,-50000.0,0.000265,7]
[426043448,1782131455000,-200.0,0.00026689,2]
[426043472,1782131455000,-200.0,0.00026689,2]
[426043475,1782131455000,-500.0,0.00026689,2]
[426043476,1782131455000,-500.0,0.00026689,2]
[426043478,1782131455000,-500.0,0.00026689,2]
[426043488,1782131455000,-182.0,0.00026689,2]
[426043489,1782131455000,-500.0,0.00026689,2]
[426043477,1782131455000,-500.0,0.00026689,2]
[426043487,1782131455000,-200.0,0.00026689,2]
[426043480,1782131455000,-500.0,0.00026689,2]
[426043481,1782131455000,-500.0,0.00026689,2]
[426043483,1782131455000,-500.0,0.00026689,2]
[426043474,1782131455000,-200.0,0.00026689,2]
[426043484,1782131455000,-200.0,0.00026689,2]
[426043486,1782131455000,-200.0,0.00026689,2]
[426043479,1782131455000,-500.0,0.00026689,2]
[426043490,1782131455000,-500.0,0.00026689,2]
[426043492,1782131455000,-500.0,0.00026689,2]
[426043493,1782131455000,-500.0,0.00026689,2]
[426043491,1782131455000,-500.0,0.00026689,2]
[426043494,1782131455000,-500.0,0.00026689,2]
[426043496,1782131455000,-500.0,0.00026689,2]
[426043495,1782131455000,-500.0,0.00026689,2]
[426043498,1782131455000,-364.22112622,0.00026721,2]
[426043439,1782131455000,-187.0,0.00026626,5]
[426043485,1782131455000,-200.0,0.00026689,2]
[426043470,1782131455000,-200.0,0.00026689,2]
[426043497,1782131455000,-593.0,0.00026689,2]
[426043464,1782131455000,-200.0,0.00026689,2]
[426043471,1782131455000,-200.0,0.00026689,2]
[426043449,1782131455000,-200.0,0.00026689,2]
[426043442,1782131455000,-200.0,0.00026689,2]
[426043461,1782131455000,-200.0,0.00026689,2]
[426043450,1782131455000,-200.0,0.00026689,2]
[426043451,1782131455000,-200.0,0.00026689,2]
[426043454,1782131455000,-200.0,0.00026689,2]
[426043462,1782131455000,-200.0,0.00026689,2]
[426043453,1782131455000,-200.0,0.00026689,2]
[426043452,1782131455000,-200.0,0.00026689,2]
[426043455,1782131455000,-200.0,0.00026689,2]
[426043456,1782131455000,-200.0,0.00026689,2]
[426043445,1782131455000,-200.0,0.00026689,2]
[426043459,1782131455000,-200.0,0.00026689,2]
[426043457,1782131455000,-200.0,0.00026689,2]
[426043460,1782131455000,-200.0,0.00026689,2]
[426043463,1782131455000,-200.0,0.00026689,2]
[426043465,1782131455000,-200.0,0.00026689,2]
[426043466,1782131455000,-200.0,0.00026689,2]
[426043499,1782131455000,-329.7814608,0.00026722,2]
[426043468,1782131455000,-200.0,0.00026689,2]
[426043469,1782131455000,-200.0,0.00026689,2]
[426043467,1782131455000,-200.0,0.00026689,2]
[426043473,1782131455000,-200.0,0.00026689,2]
[426043458,1782131455000,-200.0,0.00026689,2]
[426043534,1782131456000,-347.38734075,0.00026723,2]
[426043538,1782131456000,-236.23414528,0.00026723,2]
[426043533,1782131456000,-345.6466856,0.00026723,2]
[426043539,1782131456000,-408.3351631,0.00026723,2]
[426043529,1782131456000,-332.40358432,0.00026723,2]
[426043532,1782131456000,-225.15466045,0.00026723,2]
[426043531,1782131456000,-319.09546027,0.00026723,2]
[426043530,1782131456000,-321.0712846,0.00026723,2]
[426043527,1782131456000,-200.18459045,0.00026723,2]
[426043528,1782131456000,-351.11567648,0.00026723,2]
[426043535,1782131456000,-316.25060929,0.00026723,2]
[426043544,1782131456000,-270.0455652,0.00026736,2]
[426043536,1782131456000,-223.49105104,0.00026723,2]
[426043540,1782131456000,-321.83346627,0.00026723,2]
[426043551,1782131456000,-3000.0,0.00026873,3]
[426043542,1782131456000,-152.61646468,0.00026723,2]
[426043541,1782131456000,-368.52936196,0.00026723,2]
[426043543,1782131456000,-420.75706222,0.00026736,2]
[426043546,1782131456000,-382.99710852,0.00026736,2]
[426043545,1782131456000,-151.0,0.00026736,2]
[426043548,1782131456000,-250.02,0.00026849,8]
[426043521,1782131456000,-204.80700667,0.00026723,2]
[426043547,1782131456000,-847.53135703,0.00026736,2]
[426043537,1782131456000,-389.99846273,0.00026723,2]
[426043524,1782131456000,-210.32996405,0.00026723,2]
[426043511,1782131456000,-407.35522504,0.00026723,2]
[426043526,1782131456000,-226.67051891,0.00026723,2]
[426043550,1782131456000,-199.09,0.00026849,8]
[426043500,1782131456000,-195.6836118,0.00026722,2]
[426043502,1782131456000,-243.27897111,0.00026723,2]
[426043501,1782131456000,-154.7020948,0.00026722,2]
[426043504,1782131456000,-370.81750871,0.00026723,2]
[426043503,1782131456000,-186.10420725,0.00026723,2]
[426043508,1782131456000,-362.74367407,0.00026723,2]
[426043507,1782131456000,-368.63386337,0.00026723,2]
[426043505,1782131456000,-316.91717302,0.00026723,2]
[426043509,1782131456000,-386.86549367,0.00026723,2]
[426043510,1782131456000,-395.38193092,0.00026723,2]
[426043514,1782131456000,-437.10167785,0.00026723,2]
[426043506,1782131456000,-397.3619889,0.00026723,2]
[426043513,1782131456000,-163.4724224,0.00026723,2]
[426043515,1782131456000,-224.71971872,0.00026723,2]
[426043512,1782131456000,-342.41535644,0.00026723,2]
[426043517,1782131456000,-225.64827983,0.00026723,2]
[426043516,1782131456000,-226.05870673,0.00026723,2]
[426043519,1782131456000,-333.28115338,0.00026723,2]
[426043518,1782131456000,-519.20465562,0.00026723,2]
[426043520,1782131456000,-171.66425818,0.00026723,2]
[426043522,1782131456000,-229.93832611,0.00026723,2]
[426043525,1782131456000,-305.29129391,0.00026723,2]
[426043523,1782131456000,-237.03304275,0.00026723,2]
[426043549,1782131456000,-250.0,0.00026849,8]
[426043552,1782131456000,-189.75809,0.00026873,2]
[426043602,1782131456000,-117989.81146516,0.00027329,2]
[426043584,1782131456000,-1276.0,0.00027184,2]
[426043582,1782131456000,-150.0,0.00027184,2]
[426043585,1782131456000,-1360.0,0.00027184,2]
[426043583,1782131456000,-150.0,0.00027184,2]
[426043586,1782131456000,-1229.0,0.00027184,2]
[426043588,1782131456000,-113283.43796739,0.000272,2]
[426043589,1782131456000,-50638.63297689,0.000272,2]
[426043591,1782131456000,-468.128208,0.0002725,2]
[426043596,1782131456000,-264.43608416,0.00027321,2]
[426043593,1782131456000,-189.7581,0.00027273,2]
[426043590,1782131456000,-445.882329,0.00027225,2]
[426043580,1782131456000,-501.0,0.00027137,2]
[426043595,1782131456000,-200.0,0.000273,10]
[426043594,1782131456000,-280.03725111,0.00027284,2]
[426043606,1782131456000,-8294.5745801,0.0002739,2]
[426043597,1782131456000,-2000.0,0.00027329,2]
[426043604,1782131456000,-500.0,0.0002737,2]
[426043598,1782131456000,-10000.0,0.00027329,2]
[426043605,1782131456000,-4198.42287072,0.0002739,2]
[426043600,1782131456000,-451.9916,0.00027329,2]
[426043601,1782131456000,-847.9769,0.00027329,2]
[426043603,1782131456000,-803.53,0.00027346,7]
[426043599,1782131456000,-1296.5036,0.00027329,2]
[426043555,1782131456000,-350.0,0.00026991,3]
[426043592,1782131456000,-649.05,0.00027259,2]
[426043581,1782131456000,-150.0,0.00027184,2]
[426043587,1782131456000,-3000.0,0.00027199,30]
[426043578,1782131456000,-537.16622831,0.00027123,7]
[426043577,1782131456000,-449.44997712,0.00027123,7]
[426043556,1782131456000,-22605.16821537,0.00027,2]
[426043559,1782131456000,-67750.02891583,0.00027,2]
[426043560,1782131456000,-1056.37288543,0.00027,2]
[426043563,1782131456000,-3239.0,0.00027,20]
[426043564,1782131456000,-18703.08216513,0.00027,2]
[426043557,1782131456000,-10000.0,0.00027,2]
[426043553,1782131456000,-394.0,0.0002688,2]
[426043561,1782131456000,-530.0,0.00027,2]
[426043558,1782131456000,-250.0,0.00027,2]
[426043562,1782131456000,-795.46,0.00027,7]
[426043565,1782131456000,-10000.0,0.00027,2]
[426043554,1782131456000,-3014.81441257,0.00026891,2]
[426043568,1782131456000,-200.0,0.00027007,2]
[426043566,1782131456000,-10000.0,0.00027,2]
[426043576,1782131456000,-200.0,0.00027108,2]
[426043575,1782131456000,-189.7581,0.00027073,2]
[426043572,1782131456000,-151.0,0.00027053,2]
[426043574,1782131456000,-152.24,0.00027061,2]
[426043579,1782131456000,-465.0,0.00027123,2]
[426043573,1782131456000,-263.124355,0.00027055,7]
[426043567,1782131456000,-160.0,0.00027,3]
[426043569,1782131456000,-5286.0,0.00027018,10]
[426043571,1782131456000,-151.0,0.00027053,2]
[426043570,1782131456000,-152.0,0.00027023,5]
[426043645,1782131457000,-500.0,0.00027397,2]
[426043641,1782131457000,-1000.0,0.00027397,2]
[426043642,1782131457000,-530.352991,0.00027397,2]
[426043637,1782131457000,-221.26,0.00027397,2]
[426043652,1782131457000,-573.46235251,0.00027397,2]
[426043635,1782131457000,-281.58,0.00027397,2]
[426043639,1782131457000,-1000.0,0.00027397,2]
[426043631,1782131457000,-500.0,0.00027397,2]
[426043633,1782131457000,-500.0,0.00027397,2]
[426043643,1782131457000,-561.36872873,0.00027397,2]
[426043638,1782131457000,-225.78,0.00027397,2]
[426043644,1782131457000,-792.24003188,0.00027397,2]
[426043648,1782131457000,-500.0,0.00027397,2]
[426043649,1782131457000,-503.45110785,0.00027397,2]
[426043647,1782131457000,-500.0,0.00027397,2]
[426043650,1782131457000,-500.0,0.00027397,2]
[426043651,1782131457000,-500.0,0.00027397,2]
[426043654,1782131457000,-500.0,0.00027397,2]
[426043653,1782131457000,-500.0,0.00027397,2]
[426043656,1782131457000,-500.0,0.00027397,2]
[426043659,1782131457000,-501.81883181,0.00027397,2]
[426043662,1782131457000,-500.0,0.00027397,2]
[426043655,1782131457000,-502.71225937,0.00027397,2]
[426043634,1782131457000,-292.4779223,0.00027397,2]
[426043646,1782131457000,-500.0,0.00027397,2]
[426043640,1782131457000,-225.77,0.00027397,2]
[426043657,1782131457000,-502.97240295,0.00027397,2]
[426043632,1782131457000,-500.0,0.00027397,2]
[426043607,1782131457000,-151.0,0.00027394,7]
[426043608,1782131457000,-204.136062,0.00027394,7]
[426043612,1782131457000,-1000.0,0.00027396,2]
[426043609,1782131457000,-3145.3893723,0.00027396,2]
[426043616,1782131457000,-1000.0,0.00027396,2]
[426043617,1782131457000,-1000.0,0.00027396,2]
[426043613,1782131457000,-1000.0,0.00027396,2]
[426043618,1782131457000,-1000.0,0.00027396,2]
[426043615,1782131457000,-1000.0,0.00027396,2]
[426043614,1782131457000,-1000.0,0.00027396,2]
[426043610,1782131457000,-8586.76334058,0.00027396,10]
[426043636,1782131457000,-240.07,0.00027397,2]
[426043611,1782131457000,-1000.0,0.00027396,2]
[426043621,1782131457000,-510.37,0.00027396,2]
[426043626,1782131457000,-561.83246015,0.00027396,2]
[426043619,1782131457000,-1000.0,0.00027396,2]
[426043628,1782131457000,-561.83246015,0.00027396,2]
[426043624,1782131457000,-510.37,0.00027396,2]
[426043627,1782131457000,-561.83246015,0.00027396,2]
[426043620,1782131457000,-783.82906622,0.00027396,2]
[426043623,1782131457000,-510.37,0.00027396,2]
[426043629,1782131457000,-561.83246014,0.00027396,2]
[426043622,1782131457000,-510.37,0.00027396,2]
[426043630,1782131457000,-1000.0,0.00027397,2]
[426043625,1782131457000,-561.83246015,0.00027396,2]
[426043661,1782131457000,-500.0,0.00027397,2]
[426043658,1782131457000,-500.0,0.00027397,2]
[426043660,1782131457000,-229.38366513,0.00027397,2]
[426043691,1782131457000,-500.0,0.00027397,2]
[426043694,1782131457000,-500.0,0.00027397,2]
[426043695,1782131457000,-500.0,0.00027397,2]
[426043693,1782131457000,-500.0,0.00027397,2]
[426043696,1782131457000,-500.0,0.00027397,2]
[426043700,1782131457000,-500.0,0.00027397,2]
[426043705,1782131457000,-500.0,0.00027397,2]
[426043706,1782131457000,-500.0,0.00027397,2]
[426043704,1782131457000,-970.83,0.00027397,2]
[426043699,1782131457000,-500.0,0.00027397,2]
[426043701,1782131457000,-500.0,0.00027397,2]
[426043702,1782131457000,-680.9,0.00027397,2]
[426043697,1782131457000,-500.0,0.00027397,2]
[426043703,1782131457000,-500.0,0.00027397,2]
[426043708,1782131457000,-500.0,0.00027397,2]
[426043710,1782131457000,-600.36,0.00027397,2]
[426043711,1782131457000,-648.57286859,0.00027397,2]
[426043712,1782131457000,-561.61,0.00027397,2]
[426043707,1782131457000,-500.0,0.00027397,2]
[426043709,1782131457000,-633.7,0.00027397,2]
[426043713,1782131457000,-500.0,0.00027397,2]
[426043714,1782131457000,-500.0,0.00027397,2]
[426043715,1782131457000,-500.0,0.00027397,2]
[426043717,1782131457000,-947.67,0.00027397,2]
[426043663,1782131457000,-500.0,0.00027397,2]
[426043692,1782131457000,-500.0,0.00027397,2]
[426043687,1782131457000,-792.24003188,0.00027397,2]
[426043698,1782131457000,-500.0,0.00027397,2]
[426043686,1782131457000,-819.26,0.00027397,2]
[426043716,1782131457000,-513.94,0.00027397,2]
[426043690,1782131457000,-500.0,0.00027397,2]
[426043665,1782131457000,-500.0,0.00027397,2]
[426043664,1782131457000,-500.0,0.00027397,2]
[426043675,1782131457000,-500.0,0.00027397,2]
[426043673,1782131457000,-500.0,0.00027397,2]
[426043668,1782131457000,-500.0,0.00027397,2]
[426043667,1782131457000,-500.0,0.00027397,2]
[426043671,1782131457000,-500.0,0.00027397,2]
[426043669,1782131457000,-500.0,0.00027397,2]
[426043674,1782131457000,-500.0,0.00027397,2]
[426043672,1782131457000,-500.0,0.00027397,2]
[426043670,1782131457000,-500.0,0.00027397,2]
[426043666,1782131457000,-501.30646369,0.00027397,2]
[426043689,1782131457000,-585.84,0.00027397,2]
[426043688,1782131457000,-500.0,0.00027397,2]
[426043676,1782131457000,-500.0,0.00027397,2]
[426043680,1782131457000,-500.0,0.00027397,2]
[426043684,1782131457000,-599.77,0.00027397,2]
[426043678,1782131457000,-500.0,0.00027397,2]
[426043682,1782131457000,-500.0,0.00027397,2]
[426043677,1782131457000,-500.0,0.00027397,2]
[426043683,1782131457000,-500.0,0.00027397,2]
[426043679,1782131457000,-500.0,0.00027397,2]
[426043681,1782131457000,-500.0,0.00027397,2]
[426043685,1782131457000,-500.0,0.00027397,2]
[426043755,1782131458000,-626.28,0.00027397,2]
[426043756,1782131458000,-500.0,0.00027397,2]
[426043765,1782131458000,-500.0,0.00027397,2]
[426043757,1782131458000,-500.0,0.00027397,2]
[426043746,1782131458000,-314.72387775,0.00027397,2]
[426043751,1782131458000,-500.0,0.00027397,2]
[426043750,1782131458000,-500.0,0.00027397,2]
[426043749,1782131458000,-500.0,0.00027397,2]
[426043752,1782131458000,-500.0,0.00027397,2]
[426043758,1782131458000,-500.0,0.00027397,2]
[426043753,1782131458000,-500.0,0.00027397,2]
[426043754,1782131458000,-500.0,0.00027397,2]
[426043770,1782131458000,-500.0,0.00027397,2]
[426043762,1782131458000,-500.0,0.00027397,2]